[Event "Titled Tuesday Blitz June 07 Early 2022"]
[White "Sarana, Alexey"]
[Black "Hasangatin, Ramil"]
[WhiteFideId "24133795"]
[BlackFideId "4122160"]
[WhiteElo "2666"]
[BlackElo "2384"]
[Result "1-0"]
[Round "02"]
[TimeControl "180+1"]
[Date "2022.06.07"]
[WhiteClock "0:00:14"]
[BlackClock "0:00:01"]

1. d4 {[%clk 0:02:59]}  d6 {[%clk 0:02:59]} 2. e4 {[%clk 0:02:53]}  Nf6 {[%clk 0:02:59]} 3. Nc3 {[%clk 0:02:53]}  e5 {[%clk 0:03:00]} 4. Nf3 {[%clk 0:02:52]}  Nbd7 {[%clk 0:03:00]} 5. Bc4 {[%clk 0:02:50]}  Be7 {[%clk 0:03:00]} 6. O-O {[%clk 0:02:48]}  O-O {[%clk 0:03:01]} 7. a4 {[%clk 0:02:49]}  c6 {[%clk 0:03:01]} 8. Re1 {[%clk 0:02:49]}  b6 {[%clk 0:02:59]} 9. h3 {[%clk 0:02:49]}  Bb7 {[%clk 0:02:56]} 10. Ba2 {[%clk 0:02:49]}  a6 {[%clk 0:02:56]} 11. Be3 {[%clk 0:02:47]}  b5 {[%clk 0:02:56]} 12. d5 {[%clk 0:02:42]}  b4 {[%clk 0:02:41]} 13. dxc6 {[%clk 0:02:42]}  Bxc6 {[%clk 0:02:41]} 14. Nd5 {[%clk 0:02:43]}  Nxe4 {[%clk 0:02:34]} 15. Nxb4 {[%clk 0:02:42]}  Bb7 {[%clk 0:02:28]} 16. Bd5 {[%clk 0:02:41]}  Bxd5 {[%clk 0:02:18]} 17. Qxd5 {[%clk 0:02:34]}  Nef6 {[%clk 0:02:08]} 18. Qc4 {[%clk 0:02:33]}  Qc8 {[%clk 0:01:36]} 19. Nc6 {[%clk 0:01:13]}  Re8 {[%clk 0:01:35]} 20. a5 {[%clk 0:00:53]}  d5 {[%clk 0:01:29]} 21. Nxe7+ {[%clk 0:00:52]}  Rxe7 {[%clk 0:01:29]} 22. Qxc8+ {[%clk 0:00:53]}  Rxc8 {[%clk 0:01:28]} 23. c3 {[%clk 0:00:54]}  h6 {[%clk 0:01:15]} 24. Ra3 {[%clk 0:00:50]}  Rb8 {[%clk 0:01:12]} 25. b4 {[%clk 0:00:50]}  Ne4 {[%clk 0:00:59]} 26. c4 {[%clk 0:00:30]}  dxc4 {[%clk 0:00:42]} 27. Ba7 {[%clk 0:00:29]}  Rb7 {[%clk 0:00:42]} 28. Rxe4 {[%clk 0:00:29]}  Rxa7 {[%clk 0:00:42]} 29. Rxc4 {[%clk 0:00:30]}  e4 {[%clk 0:00:33]} 30. Nd4 {[%clk 0:00:27]}  Ne5 {[%clk 0:00:34]} 31. Rc8+ {[%clk 0:00:25]}  Kh7 {[%clk 0:00:34]} 32. b5 {[%clk 0:00:21]}  axb5 {[%clk 0:00:26]} 33. Nxb5 {[%clk 0:00:22]}  Rab7 {[%clk 0:00:26]} 34. Nd6 {[%clk 0:00:18]}  Rb1+ {[%clk 0:00:23]} 35. Kh2 {[%clk 0:00:18]}  Nd3 {[%clk 0:00:11]} 36. a6 {[%clk 0:00:18]}  Nxf2 {[%clk 0:00:04]} 37. a7 {[%clk 0:00:17]}  e3 {[%clk 0:00:03]} 38. a8=Q {[%clk 0:00:15]}  e2 {[%clk 0:00:03]} 39. Rh8+ {[%clk 0:00:14]}  Kg6 {[%clk 0:00:03]} 40. Rg3+ {[%clk 0:00:14]}  Kf6 {[%clk 0:00:01]} 41. Qf3+ {[%clk 0:00:14]} 1-0


[Site "https://www.chess.com"]

[Event "Titled Tuesday Blitz June 07 Early 2022"]
[White "Shuvalov, Evgenij"]
[Black "Nugumanov, Bakhtiyar"]
[WhiteFideId "4187237"]
[BlackFideId "13701797"]
[WhiteElo "2023"]
[BlackElo "2262"]
[Result "1-0"]
[Round "02"]
[TimeControl "180+1"]
[Date "2022.06.08"]
[WhiteClock "0:00:14"]
[BlackClock "0:00:09"]

1. Nf3 {[%clk 0:03:00]}  d5 {[%clk 0:03:00]} 2. c4 {[%clk 0:03:00]}  e6 {[%clk 0:02:59]} 3. g3 {[%clk 0:03:00]}  Nf6 {[%clk 0:02:59]} 4. b3 {[%clk 0:03:00]}  Be7 {[%clk 0:02:56]} 5. Bb2 {[%clk 0:03:01]}  O-O {[%clk 0:02:56]} 6. Bg2 {[%clk 0:03:01]}  c5 {[%clk 0:02:56]} 7. e3 {[%clk 0:02:58]}  b6 {[%clk 0:02:49]} 8. O-O {[%clk 0:02:57]}  Bb7 {[%clk 0:02:50]} 9. Nc3 {[%clk 0:02:57]}  Nc6 {[%clk 0:02:35]} 10. cxd5 {[%clk 0:02:56]}  exd5 {[%clk 0:02:33]} 11. d4 {[%clk 0:02:51]}  Rc8 {[%clk 0:02:31]} 12. Rc1 {[%clk 0:02:48]}  Ne4 {[%clk 0:02:14]} 13. dxc5 {[%clk 0:02:43]}  Nxc3 {[%clk 0:02:14]} 14. Bxc3 {[%clk 0:02:42]}  bxc5 {[%clk 0:02:14]} 15. Qe2 {[%clk 0:02:40]}  Qb6 {[%clk 0:01:59]} 16. Rfd1 {[%clk 0:02:38]}  Rfd8 {[%clk 0:01:59]} 17. Qb2 {[%clk 0:02:36]}  Bf8 {[%clk 0:01:54]} 18. Nh4 {[%clk 0:02:26]}  d4 {[%clk 0:01:49]} 19. Bd2 {[%clk 0:02:12]}  Ne5 {[%clk 0:01:40]} 20. Qb1 {[%clk 0:01:58]}  Bxg2 {[%clk 0:01:36]} 21. Kxg2 {[%clk 0:01:55]}  Qb7+ {[%clk 0:01:34]} 22. e4 {[%clk 0:01:53]}  d3 {[%clk 0:01:16]} 23. Re1 {[%clk 0:01:51]}  Rd4 {[%clk 0:01:10]} 24. f3 {[%clk 0:01:46]}  Rd7 {[%clk 0:01:00]} 25. Nf5 {[%clk 0:01:42]}  c4 {[%clk 0:00:55]} 26. bxc4 {[%clk 0:01:39]}  Qxb1 {[%clk 0:00:55]} 27. Rxb1 {[%clk 0:01:40]}  Nxc4 {[%clk 0:00:55]} 28. Red1 {[%clk 0:01:37]}  Na3 {[%clk 0:00:36]} 29. Rbc1 {[%clk 0:01:31]}  Rc2 {[%clk 0:00:35]} 30. Ne3 {[%clk 0:01:20]}  Rxa2 {[%clk 0:00:35]} 31. Kh3 {[%clk 0:01:10]}  Nc2 {[%clk 0:00:30]} 32. Nd5 {[%clk 0:01:05]}  Ra6 {[%clk 0:00:25]} 33. Bf4 {[%clk 0:00:59]}  Ra3 {[%clk 0:00:17]} 34. Rd2 {[%clk 0:00:56]}  Rb7 {[%clk 0:00:15]} 35. Rcd1 {[%clk 0:00:55]}  Rbb3 {[%clk 0:00:15]} 36. Ne3 {[%clk 0:00:37]}  Nd4 {[%clk 0:00:14]} 37. Kg2 {[%clk 0:00:34]}  Bb4 {[%clk 0:00:14]} 38. Nc4 {[%clk 0:00:31]}  Ra4 {[%clk 0:00:11]} 39. Rxd3 {[%clk 0:00:30]}  Ra2+ {[%clk 0:00:12]} 40. Kh3 {[%clk 0:00:28]}  Rxd3 {[%clk 0:00:09]} 41. Rxd3 {[%clk 0:00:29]}  Ne6 {[%clk 0:00:10]} 42. Bd6 {[%clk 0:00:26]}  Bxd6 {[%clk 0:00:09]} 43. Nxd6 {[%clk 0:00:26]}  h6 {[%clk 0:00:07]} 44. f4 {[%clk 0:00:23]}  a6 {[%clk 0:00:05]} 45. Nf5 {[%clk 0:00:20]}  Kh7 {[%clk 0:00:04]} 46. Nd4 {[%clk 0:00:20]}  Nc5 {[%clk 0:00:03]} 47. Re3 {[%clk 0:00:20]}  Ra4 {[%clk 0:00:04]} 48. Nc6 {[%clk 0:00:16]}  Nxe4 {[%clk 0:00:04]} 49. Ne5 {[%clk 0:00:13]}  Nf6 {[%clk 0:00:04]} 50. Kg2 {[%clk 0:00:12]}  Ra2+ {[%clk 0:00:04]} 51. Kf3 {[%clk 0:00:11]}  Rxh2 {[%clk 0:00:03]} 52. Nxf7 {[%clk 0:00:12]}  Ra2 {[%clk 0:00:02]} 53. Rb3 {[%clk 0:00:09]}  a5 {[%clk 0:00:02]} 54. Rb7 {[%clk 0:00:09]}  a4 {[%clk 0:00:02]} 55. Ra7 {[%clk 0:00:09]}  Ra3+ {[%clk 0:00:03]} 56. Kg2 {[%clk 0:00:08]}  Ra2+ {[%clk 0:00:03]} 57. Kh3 {[%clk 0:00:09]}  Ra3 {[%clk 0:00:04]} 58. Nd6 {[%clk 0:00:08]}  Ne4 {[%clk 0:00:04]} 59. Nxe4 {[%clk 0:00:08]}  Ra2 {[%clk 0:00:03]} 60. Nc5 {[%clk 0:00:08]}  Kg6 {[%clk 0:00:04]} 61. Rxa4 {[%clk 0:00:08]}  Rxa4 {[%clk 0:00:03]} 62. Nxa4 {[%clk 0:00:08]}  Kf5 {[%clk 0:00:03]} 63. Nc5 {[%clk 0:00:09]}  g5 {[%clk 0:00:03]} 64. fxg5 {[%clk 0:00:09]}  hxg5 {[%clk 0:00:04]} 65. g4+ {[%clk 0:00:10]}  Kg6 {[%clk 0:00:05]} 66. Kg3 {[%clk 0:00:10]}  Kf6 {[%clk 0:00:06]} 67. Kf3 {[%clk 0:00:10]}  Ke5 {[%clk 0:00:06]} 68. Nd3+ {[%clk 0:00:10]}  Kd4 {[%clk 0:00:07]} 69. Nf2 {[%clk 0:00:11]}  Ke5 {[%clk 0:00:07]} 70. Nh3 {[%clk 0:00:12]}  Kf6 {[%clk 0:00:07]} 71. Ke4 {[%clk 0:00:13]}  Kg6 {[%clk 0:00:08]} 72. Ke5 {[%clk 0:00:13]}  Kh6 {[%clk 0:00:08]} 73. Kf5 {[%clk 0:00:13]}  Kg7 {[%clk 0:00:09]} 74. Nxg5 {[%clk 0:00:14]} 1-0


[Site "https://www.chess.com"]

[Event "Titled Tuesday Blitz June 07 Early 2022"]
[White "Slugin, Sergey"]
[Black "Suleymanli, Aydin"]
[WhiteFideId "4122569"]
[BlackFideId "13413937"]
[WhiteElo "2358"]
[BlackElo "2481"]
[Result "0-1"]
[Round "02"]
[TimeControl "180+1"]
[Date "2022.06.07"]
[WhiteClock "0:00:47"]
[BlackClock "0:00:17"]

1. d4 {[%clk 0:02:57]}  d5 {[%clk 0:02:51]} 2. Nc3 {[%clk 0:02:57]}  e6 {[%clk 0:02:49]} 3. Bf4 {[%clk 0:02:54]}  a6 {[%clk 0:02:46]} 4. e3 {[%clk 0:02:52]}  c5 {[%clk 0:02:45]} 5. Nf3 {[%clk 0:02:49]}  Nc6 {[%clk 0:02:45]} 6. Ne5 {[%clk 0:02:45]}  Nxe5 {[%clk 0:02:45]} 7. Bxe5 {[%clk 0:02:44]}  Ne7 {[%clk 0:02:46]} 8. Be2 {[%clk 0:02:41]}  Nc6 {[%clk 0:02:45]} 9. Bg3 {[%clk 0:02:39]}  cxd4 {[%clk 0:02:43]} 10. exd4 {[%clk 0:02:40]}  Qb6 {[%clk 0:02:43]} 11. Na4 {[%clk 0:02:35]}  Qa7 {[%clk 0:02:30]} 12. O-O {[%clk 0:02:20]}  Nxd4 {[%clk 0:02:04]} 13. Re1 {[%clk 0:02:08]}  Nc6 {[%clk 0:01:27]} 14. c4 {[%clk 0:02:01]}  dxc4 {[%clk 0:01:23]} 15. Bxc4 {[%clk 0:02:02]}  Bb4 {[%clk 0:01:20]} 16. Bd6 {[%clk 0:01:47]}  Bxe1 {[%clk 0:01:09]} 17. Bc5 {[%clk 0:01:47]}  b6 {[%clk 0:00:56]} 18. Nxb6 {[%clk 0:01:47]}  Bb4 {[%clk 0:00:52]} 19. Be3 {[%clk 0:01:35]}  Qb7 {[%clk 0:00:45]} 20. a3 {[%clk 0:01:28]}  Be7 {[%clk 0:00:43]} 21. Nxa8 {[%clk 0:01:05]}  Qxa8 {[%clk 0:00:44]} 22. Rc1 {[%clk 0:01:05]}  O-O {[%clk 0:00:44]} 23. Qc2 {[%clk 0:01:05]}  Ne5 {[%clk 0:00:43]} 24. Be2 {[%clk 0:01:05]}  Bb7 {[%clk 0:00:43]} 25. Qc7 {[%clk 0:01:03]}  Bf6 {[%clk 0:00:42]} 26. f4 {[%clk 0:00:59]}  Ng6 {[%clk 0:00:31]} 27. f5 {[%clk 0:00:53]}  exf5 {[%clk 0:00:30]} 28. Bc4 {[%clk 0:00:53]}  Bxg2 {[%clk 0:00:29]} 29. Bc5 {[%clk 0:00:52]}  Be5 {[%clk 0:00:19]} 30. Qd7 {[%clk 0:00:48]}  Bh1 {[%clk 0:00:18]} 31. Qd2 {[%clk 0:00:47]}  Bf4 {[%clk 0:00:17]} 0-1


[Site "https://www.chess.com"]

[Event "Titled Tuesday Blitz June 07 Early 2022"]
[White "Tisaj, Domen"]
[Black "Kozak, Adam"]
[WhiteFideId "14628708"]
[BlackFideId "753246"]
[WhiteElo "2326"]
[BlackElo "2459"]
[Result "0-1"]
[Round "02"]
[TimeControl "180+1"]
[Date "2022.06.07"]
[WhiteClock "0:00:02"]
[BlackClock "0:00:05"]

1. Nf3 {[%clk 0:02:59]}  g6 {[%clk 0:02:58]} 2. e4 {[%clk 0:02:57]}  Bg7 {[%clk 0:02:58]} 3. d4 {[%clk 0:02:57]}  d6 {[%clk 0:02:58]} 4. Nc3 {[%clk 0:02:57]}  Nc6 {[%clk 0:02:58]} 5. h3 {[%clk 0:02:55]}  e5 {[%clk 0:02:57]} 6. dxe5 {[%clk 0:02:50]}  Nxe5 {[%clk 0:02:57]} 7. Nxe5 {[%clk 0:02:49]}  Bxe5 {[%clk 0:02:56]} 8. Bc4 {[%clk 0:02:48]}  Be6 {[%clk 0:02:51]} 9. Bxe6 {[%clk 0:02:47]}  fxe6 {[%clk 0:02:52]} 10. O-O {[%clk 0:02:42]}  Qd7 {[%clk 0:02:52]} 11. f4 {[%clk 0:02:39]}  Bxc3 {[%clk 0:02:52]} 12. bxc3 {[%clk 0:02:39]}  Ne7 {[%clk 0:02:52]} 13. Qd4 {[%clk 0:02:34]}  O-O {[%clk 0:02:31]} 14. c4 {[%clk 0:02:30]}  Nc6 {[%clk 0:02:27]} 15. Qd3 {[%clk 0:02:05]}  Rf7 {[%clk 0:02:00]} 16. Bb2 {[%clk 0:01:50]}  Raf8 {[%clk 0:01:59]} 17. Qc3 {[%clk 0:01:35]}  e5 {[%clk 0:01:58]} 18. fxe5 {[%clk 0:01:34]}  Rxf1+ {[%clk 0:01:57]} 19. Rxf1 {[%clk 0:01:34]}  Rxf1+ {[%clk 0:01:57]} 20. Kxf1 {[%clk 0:01:35]}  Nxe5 {[%clk 0:01:58]} 21. c5 {[%clk 0:01:29]}  b6 {[%clk 0:00:53]} 22. cxd6 {[%clk 0:01:24]}  cxd6 {[%clk 0:00:54]} 23. Qb3+ {[%clk 0:01:20]}  Qf7+ {[%clk 0:00:54]} 24. Ke2 {[%clk 0:01:18]}  Nc4 {[%clk 0:00:51]} 25. Bd4 {[%clk 0:01:13]}  Kf8 {[%clk 0:00:47]} 26. Qb5 {[%clk 0:01:07]}  Na5 {[%clk 0:00:41]} 27. Qg5 {[%clk 0:01:02]}  Nc6 {[%clk 0:00:37]} 28. Bc3 {[%clk 0:00:55]}  Qc4+ {[%clk 0:00:33]} 29. Kd2 {[%clk 0:00:56]}  Qxe4 {[%clk 0:00:32]} 30. Qf6+ {[%clk 0:00:55]}  Ke8 {[%clk 0:00:33]} 31. Qh8+ {[%clk 0:00:48]}  Kd7 {[%clk 0:00:33]} 32. Qxh7+ {[%clk 0:00:48]}  Ne7 {[%clk 0:00:23]} 33. g4 {[%clk 0:00:43]}  Kc6 {[%clk 0:00:23]} 34. Qh8 {[%clk 0:00:27]}  Nd5 {[%clk 0:00:20]} 35. Qc8+ {[%clk 0:00:18]}  Nc7 {[%clk 0:00:20]} 36. Qh8 {[%clk 0:00:18]}  Kb7 {[%clk 0:00:15]} 37. Kc1 {[%clk 0:00:15]}  Nd5 {[%clk 0:00:14]} 38. Bd2 {[%clk 0:00:13]}  a5 {[%clk 0:00:06]} 39. Qh7+ {[%clk 0:00:10]}  Kc6 {[%clk 0:00:06]} 40. Qh8 {[%clk 0:00:09]}  Nc7 {[%clk 0:00:06]} 41. Qc3+ {[%clk 0:00:08]}  Kb7 {[%clk 0:00:07]} 42. Qd3 {[%clk 0:00:09]}  Qe6 {[%clk 0:00:06]} 43. Qb3 {[%clk 0:00:07]}  d5 {[%clk 0:00:06]} 44. Qe3 {[%clk 0:00:05]}  Qc6 {[%clk 0:00:05]} 45. Qc3 {[%clk 0:00:05]}  Qd7 {[%clk 0:00:05]} 46. Qe5 {[%clk 0:00:04]}  Ne6 {[%clk 0:00:05]} 47. h4 {[%clk 0:00:04]}  Qc6 {[%clk 0:00:03]} 48. h5 {[%clk 0:00:04]}  gxh5 {[%clk 0:00:04]} 49. gxh5 {[%clk 0:00:05]}  Nc5 {[%clk 0:00:04]} 50. Qe7+ {[%clk 0:00:02]}  Ka6 {[%clk 0:00:05]} 51. Qe2+ {[%clk 0:00:02]}  b5 {[%clk 0:00:05]} 52. h6 {[%clk 0:00:03]}  Ne4 {[%clk 0:00:05]} 53. Qd3 {[%clk 0:00:02]}  Qf6 {[%clk 0:00:05]} 54. Kd1 {[%clk 0:00:02]}  Nf2+ {[%clk 0:00:05]} 0-1


[Site "https://www.chess.com"]

[Event "Titled Tuesday Blitz June 07 Early 2022"]
[White "Tomb, Maroun"]
[Black "Drygalov, Sergey"]
[WhiteFideId "5300398"]
[BlackFideId "24171743"]
[WhiteElo "2568"]
[BlackElo "2514"]
[Result "0-1"]
[Round "02"]
[TimeControl "180+1"]
[Date "2022.06.07"]
[WhiteClock "0:02:44"]
[BlackClock "0:02:45"]

1. e4 {[%clk 0:03:00]}  c5 {[%clk 0:02:59]} 2. Ne2 {[%clk 0:03:00]}  d6 {[%clk 0:02:57]} 3. g3 {[%clk 0:03:00]}  Nf6 {[%clk 0:02:56]} 4. Bg2 {[%clk 0:03:00]}  Nc6 {[%clk 0:02:56]} 5. c3 {[%clk 0:03:00]}  e5 {[%clk 0:02:49]} 6. d4 {[%clk 0:03:00]}  cxd4 {[%clk 0:02:49]} 7. cxd4 {[%clk 0:03:00]}  exd4 {[%clk 0:02:49]} 8. Nxd4 {[%clk 0:02:58]}  Bg4 {[%clk 0:02:48]} 9. f3 {[%clk 0:02:58]}  Bd7 {[%clk 0:02:48]} 10. Nc3 {[%clk 0:02:51]}  Be7 {[%clk 0:02:48]} 11. Be3 {[%clk 0:02:49]}  O-O {[%clk 0:02:48]} 12. Qd2 {[%clk 0:02:49]}  Ne5 {[%clk 0:02:48]} 13. b3 {[%clk 0:02:48]}  Rc8 {[%clk 0:02:46]} 14. h3 {[%clk 0:02:48]}  d5 {[%clk 0:02:45]} 15. Nxd5 {[%clk 0:02:43]}  Nxd5 {[%clk 0:02:45]} 16. exd5 {[%clk 0:02:44]}  Bb4 {[%clk 0:02:45]} 0-1


[Site "https://www.chess.com"]

[Event "Titled Tuesday Blitz June 07 Early 2022"]
[White "Tristan, Leonardo"]
[Black "Devaev, Alexander"]
[WhiteFideId "113816"]
[BlackFideId "4169395"]
[WhiteElo "2404"]
[BlackElo "2185"]
[Result "1-0"]
[Round "02"]
[TimeControl "180+1"]
[Date "2022.06.08"]
[WhiteClock "0:00:09"]
[BlackClock "0:00:05"]

1. d4 {[%clk 0:03:00]}  Nf6 {[%clk 0:02:58]} 2. Nf3 {[%clk 0:03:00]}  e6 {[%clk 0:02:59]} 3. Bf4 {[%clk 0:03:00]}  c5 {[%clk 0:02:57]} 4. e3 {[%clk 0:02:59]}  d5 {[%clk 0:02:57]} 5. Nbd2 {[%clk 0:02:48]}  Bd6 {[%clk 0:02:57]} 6. Bb5+ {[%clk 0:02:48]}  Nc6 {[%clk 0:02:57]} 7. Bg3 {[%clk 0:02:48]}  O-O {[%clk 0:02:55]} 8. c3 {[%clk 0:02:47]}  Qe7 {[%clk 0:02:52]} 9. Bxc6 {[%clk 0:02:44]}  bxc6 {[%clk 0:02:51]} 10. Qa4 {[%clk 0:02:45]}  Bxg3 {[%clk 0:02:39]} 11. hxg3 {[%clk 0:02:44]}  Bb7 {[%clk 0:02:10]} 12. Qa3 {[%clk 0:02:41]}  Nd7 {[%clk 0:01:46]} 13. Nb3 {[%clk 0:02:38]}  e5 {[%clk 0:01:47]} 14. Nxc5 {[%clk 0:02:32]}  Nxc5 {[%clk 0:01:44]} 15. Qxc5 {[%clk 0:02:32]}  Qxc5 {[%clk 0:01:42]} 16. dxc5 {[%clk 0:02:33]}  f6 {[%clk 0:01:42]} 17. Nh4 {[%clk 0:02:30]}  g6 {[%clk 0:01:41]} 18. g4 {[%clk 0:02:29]}  a5 {[%clk 0:01:38]} 19. g5 {[%clk 0:02:29]}  fxg5 {[%clk 0:01:33]} 20. Nf3 {[%clk 0:02:30]}  Rf5 {[%clk 0:01:34]} 21. Rd1 {[%clk 0:02:25]}  g4 {[%clk 0:01:33]} 22. Nd2 {[%clk 0:02:21]}  Raf8 {[%clk 0:01:29]} 23. O-O {[%clk 0:02:09]}  Ba6 {[%clk 0:01:28]} 24. c4 {[%clk 0:02:09]}  a4 {[%clk 0:01:21]} 25. b3 {[%clk 0:02:05]}  axb3 {[%clk 0:01:20]} 26. axb3 {[%clk 0:02:06]}  Bc8 {[%clk 0:01:02]} 27. e4 {[%clk 0:02:06]}  dxe4 {[%clk 0:00:56]} 28. Nxe4 {[%clk 0:02:07]}  Rf4 {[%clk 0:00:56]} 29. Nd6 {[%clk 0:01:56]}  Be6 {[%clk 0:00:56]} 30. Rde1 {[%clk 0:01:47]}  Rb8 {[%clk 0:00:49]} 31. Rxe5 {[%clk 0:01:47]}  Bf5 {[%clk 0:00:49]} 32. Nxf5 {[%clk 0:01:36]}  gxf5 {[%clk 0:00:45]} 33. Re3 {[%clk 0:01:36]}  Rd4 {[%clk 0:00:42]} 34. Rfe1 {[%clk 0:01:33]}  f4 {[%clk 0:00:41]} 35. Re4 {[%clk 0:01:27]}  Rbd8 {[%clk 0:00:29]} 36. Kh2 {[%clk 0:01:23]}  h5 {[%clk 0:00:26]} 37. Re5 {[%clk 0:01:23]}  Rd3 {[%clk 0:00:23]} 38. Rxh5 {[%clk 0:01:19]}  g3+ {[%clk 0:00:24]} 39. fxg3 {[%clk 0:01:19]}  fxg3+ {[%clk 0:00:22]} 40. Kh3 {[%clk 0:01:20]}  Rxb3 {[%clk 0:00:22]} 41. Re6 {[%clk 0:01:18]}  Rd1 {[%clk 0:00:19]} 42. Rxc6 {[%clk 0:01:11]}  Rc3 {[%clk 0:00:19]} 43. Kh4 {[%clk 0:00:23]}  Rh1+ {[%clk 0:00:08]} 44. Kg5 {[%clk 0:00:23]}  Rxh5+ {[%clk 0:00:06]} 45. Kxh5 {[%clk 0:00:23]}  Rxc4 {[%clk 0:00:06]} 46. Kg6 {[%clk 0:00:20]}  Rg4+ {[%clk 0:00:06]} 47. Kf5 {[%clk 0:00:20]}  Rc4 {[%clk 0:00:05]} 48. Rc8+ {[%clk 0:00:14]}  Kf7 {[%clk 0:00:05]} 49. c6 {[%clk 0:00:15]}  Ke7 {[%clk 0:00:05]} 50. Ke5 {[%clk 0:00:12]}  Rc5+ {[%clk 0:00:02]} 51. Kf4 {[%clk 0:00:11]}  Rc3 {[%clk 0:00:02]} 52. c7 {[%clk 0:00:08]}  Kd7 {[%clk 0:00:03]} 53. Rg8 {[%clk 0:00:07]}  Kxc7 {[%clk 0:00:03]} 54. Rxg3 {[%clk 0:00:07]}  Rc5 {[%clk 0:00:03]} 55. Rd3 {[%clk 0:00:07]}  Rc4+ {[%clk 0:00:03]} 56. Kf3 {[%clk 0:00:05]}  Rc1 {[%clk 0:00:03]} 57. g4 {[%clk 0:00:05]}  Rf1+ {[%clk 0:00:03]} 58. Kg3 {[%clk 0:00:06]}  Rg1+ {[%clk 0:00:01]} 59. Kh4 {[%clk 0:00:06]}  Rf1 {[%clk 0:00:01]} 60. g5 {[%clk 0:00:06]}  Rf7 {[%clk 0:00:02]} 61. Kh5 {[%clk 0:00:07]}  Rf1 {[%clk 0:00:03]} 62. g6 {[%clk 0:00:06]}  Rg1 {[%clk 0:00:03]} 63. Kh6 {[%clk 0:00:07]}  Kc8 {[%clk 0:00:03]} 64. g7 {[%clk 0:00:06]}  Rh1+ {[%clk 0:00:04]} 65. Kg6 {[%clk 0:00:07]}  Rg1+ {[%clk 0:00:04]} 66. Kf7 {[%clk 0:00:07]}  Rf1+ {[%clk 0:00:05]} 67. Kg8 {[%clk 0:00:08]}  Kb8 {[%clk 0:00:04]} 68. Rd4 {[%clk 0:00:08]}  Ka7 {[%clk 0:00:04]} 69. Kh7 {[%clk 0:00:09]}  Rh1+ {[%clk 0:00:04]} 70. Kg6 {[%clk 0:00:09]}  Rg1+ {[%clk 0:00:04]} 71. Kf6 {[%clk 0:00:10]}  Rb1 {[%clk 0:00:04]} 72. g8=Q {[%clk 0:00:10]}  Rb6+ {[%clk 0:00:05]} 73. Ke5 {[%clk 0:00:09]} 1-0


[Site "https://www.chess.com"]

[Event "Titled Tuesday Blitz June 07 Early 2022"]
[White "Van Foreest, Jorden"]
[Black "Akbas, Umut Ata"]
[WhiteFideId "1039784"]
[BlackFideId "44572646"]
[WhiteElo "2609"]
[BlackElo "1590"]
[Result "1-0"]
[Round "02"]
[TimeControl "180+1"]
[Date "2022.06.07"]
[WhiteClock "0:00:51"]
[BlackClock "0:00:12"]

1. a4 {[%clk 0:03:00]}  Nf6 {[%clk 0:02:55]} 2. Nf3 {[%clk 0:02:58]}  g6 {[%clk 0:02:54]} 3. g3 {[%clk 0:02:58]}  Bg7 {[%clk 0:02:54]} 4. Bg2 {[%clk 0:02:59]}  O-O {[%clk 0:02:55]} 5. O-O {[%clk 0:02:59]}  c5 {[%clk 0:02:55]} 6. d3 {[%clk 0:02:52]}  d5 {[%clk 0:02:52]} 7. Ne5 {[%clk 0:02:47]}  Nbd7 {[%clk 0:02:23]} 8. Nxd7 {[%clk 0:02:21]}  Bxd7 {[%clk 0:02:24]} 9. e4 {[%clk 0:02:19]}  dxe4 {[%clk 0:02:22]} 10. dxe4 {[%clk 0:02:19]}  Bc6 {[%clk 0:02:22]} 11. Qe2 {[%clk 0:02:18]}  Qc8 {[%clk 0:02:09]} 12. Nc3 {[%clk 0:02:12]}  Rd8 {[%clk 0:02:01]} 13. Bf4 {[%clk 0:02:07]}  Qe6 {[%clk 0:01:51]} 14. Rfe1 {[%clk 0:02:06]}  Nh5 {[%clk 0:01:43]} 15. Bd2 {[%clk 0:02:06]}  Rd7 {[%clk 0:01:35]} 16. Be3 {[%clk 0:01:31]}  Bxc3 {[%clk 0:01:22]} 17. bxc3 {[%clk 0:01:31]}  Qe5 {[%clk 0:01:19]} 18. Qc4 {[%clk 0:01:22]}  b6 {[%clk 0:01:09]} 19. f4 {[%clk 0:01:20]}  Qc7 {[%clk 0:01:10]} 20. Qe2 {[%clk 0:01:11]}  Qb7 {[%clk 0:01:04]} 21. e5 {[%clk 0:01:10]}  Bxg2 {[%clk 0:01:02]} 22. Qxg2 {[%clk 0:01:11]}  Qxg2+ {[%clk 0:01:02]} 23. Kxg2 {[%clk 0:01:12]}  Ng7 {[%clk 0:00:56]} 24. Red1 {[%clk 0:01:11]}  Rad8 {[%clk 0:00:55]} 25. Rxd7 {[%clk 0:01:11]}  Rxd7 {[%clk 0:00:56]} 26. a5 {[%clk 0:01:10]}  Nf5 {[%clk 0:00:56]} 27. Kf3 {[%clk 0:01:11]}  Nxe3 {[%clk 0:00:52]} 28. Kxe3 {[%clk 0:01:11]}  b5 {[%clk 0:00:51]} 29. a6 {[%clk 0:01:11]}  Rd8 {[%clk 0:00:45]} 30. Ra5 {[%clk 0:01:08]}  Rb8 {[%clk 0:00:45]} 31. c4 {[%clk 0:01:08]}  bxc4 {[%clk 0:00:40]} 32. Kd2 {[%clk 0:01:03]}  Rb6 {[%clk 0:00:20]} 33. Kc3 {[%clk 0:00:57]}  Kf8 {[%clk 0:00:18]} 34. Kxc4 {[%clk 0:00:58]}  Ke8 {[%clk 0:00:18]} 35. Kxc5 {[%clk 0:00:56]}  Kd7 {[%clk 0:00:19]} 36. c4 {[%clk 0:00:55]}  Kc7 {[%clk 0:00:16]} 37. Kd4 {[%clk 0:00:51]}  Rb1 {[%clk 0:00:15]} 38. Rb5 {[%clk 0:00:51]}  Rd1+ {[%clk 0:00:12]} 39. Kc5 {[%clk 0:00:51]} 1-0


[Site "https://www.chess.com"]